fUSD/lending_fUSD_20260412
["ID","MTS","AMOUNT","RATE_DAILY","PERIOD"]
[420327735,1775971866738,-500.0,0.00038356,8]
[420327736,1775971866755,-500.0,0.00038356,8]
[420327737,1775971866775,-2038.18,0.00038356,8]
[420327738,1775971866791,-516.79,0.00038356,8]
[420327739,1775971866811,-500.0,0.00038356,8]
[420327740,1775971866823,-500.0,0.00038356,8]
[420327741,1775971866835,-928.97,0.00038356,8]
[420327742,1775971866852,-500.0,0.00038356,8]
[420327743,1775971866863,-500.0,0.00038356,8]
[420327744,1775971866878,-500.0,0.00038356,8]
[420327745,1775971866894,-500.0,0.00038356,8]
[420327746,1775971866911,-500.0,0.00038356,8]
[420327747,1775971866924,-500.0,0.00038356,8]
[420327748,1775971866939,-500.0,0.00038356,8]
[420327749,1775971866949,-500.0,0.00038356,8]
[420327750,1775971866963,-500.0,0.00038356,8]
[420327751,1775971866976,-500.0,0.00038356,8]
[420327752,1775971866986,-500.0,0.00038356,8]
[420327753,1775971866996,-500.0,0.00038356,8]
[420327754,1775971867009,-500.0,0.00038356,8]
[420327755,1775971867020,-500.0,0.00038356,8]
[420327756,1775971867030,-500.0,0.00038356,8]
[420327757,1775971867041,-500.0,0.00038356,8]
[420327758,1775971867053,-500.0,0.00038356,8]
[420327759,1775971867064,-500.0,0.00038356,8]
[420327760,1775971867074,-500.0,0.00038356,8]
[420327761,1775971867084,-158.33707228,0.00038356,7]
[420327762,1775971867095,-500.0,0.00038356,8]
[420327763,1775971867109,-592.59,0.00038356,8]
[420327764,1775971867122,-502.42,0.00038356,8]
[420327765,1775971867144,-1810.69,0.00038356,8]
[420327766,1775971867155,-500.0,0.00038356,8]
[420327767,1775971867172,-527.58,0.00038356,8]
[420327768,1775971867191,-2182.35,0.00038356,8]
[420327769,1775971867200,-500.0,0.00038356,8]
[420327770,1775971867213,-570.93921699,0.00038356,2]
[420327771,1775971867228,-500.0,0.00038356,2]
[420327772,1775971867239,-500.0,0.00038356,2]
[420327773,1775971867251,-500.0,0.00038356,2]
[420327774,1775971867268,-311.24304446,0.00038356,2]
[420327775,1775971867288,-500.0,0.00038356,2]
[420327776,1775971867303,-500.0,0.00038356,2]
[420327777,1775971867320,-500.0,0.00038356,2]
[420327778,1775971867337,-500.0,0.00038356,2]
[420327779,1775971867353,-500.0,0.00038356,2]
[420327780,1775971867364,-500.0,0.00038356,2]
[420327781,1775971867376,-500.0,0.00038356,2]
[420327782,1775971867386,-500.0,0.00038356,2]
[420327783,1775971867400,-500.0,0.00038356,2]
[420327784,1775971867413,-500.0,0.00038356,2]
[420327785,1775971867426,-500.0,0.00038356,2]
[420327786,1775971867440,-500.0,0.00038356,2]
[420327787,1775971867449,-500.0,0.00038356,2]
[420327788,1775971867462,-500.0,0.00038356,2]
[420327789,1775971867472,-500.0,0.00038356,2]
[420327790,1775971867486,-500.0,0.00038356,2]
[420327791,1775971867496,-500.0,0.00038356,2]
[420327792,1775971867510,-500.0,0.00038356,2]
[420327793,1775971867524,-405.6490726,0.00038356,2]
[420327794,1775971867537,-500.0,0.00038356,2]
[420327795,1775971867552,-500.0,0.00038356,2]
[420327796,1775971867564,-500.0,0.00038356,2]
[420327797,1775971867574,-500.0,0.00038356,2]
[420327798,1775971867586,-272.95064763,0.00038356,2]
[420327799,1775971867597,-300.0,0.00038356,2]
[420327800,1775971867611,-300.0,0.00038356,2]
[420327801,1775971867627,-300.0,0.00038356,2]
[420327802,1775971867636,-300.0,0.00038356,2]
[420327803,1775971867647,-300.0,0.00038356,2]
[420327804,1775971867668,-300.0,0.00038356,2]
[420327805,1775971867681,-300.0,0.00038356,2]
[420327806,1775971867697,-300.0,0.00038356,2]
[420327807,1775971867719,-300.0,0.00038356,2]
[420327808,1775971867732,-300.0,0.00038356,2]
[420327809,1775971867744,-300.0,0.00038356,2]
[420327810,1775971867767,-442.79643271,0.00038356,2]
[420327811,1775971867783,-1096.59,0.00038356,2]
[420327812,1775971867796,-1096.59,0.00038356,2]
[420327813,1775971867811,-1096.59,0.00038356,2]
[420327814,1775971867830,-1096.59,0.00038356,2]
[420327815,1775971867850,-1096.59,0.00038356,2]
[420327816,1775971867873,-1096.59,0.00038356,2]
[420327817,1775971867886,-1096.59,0.00038356,2]
[420327818,1775971867908,-1096.59,0.00038356,2]
[420327819,1775971867923,-1096.59,0.00038356,2]
[420327820,1775971867933,-1096.59,0.00038356,2]
[420327821,1775971867956,-1096.59,0.00038356,2]
[420327822,1775971867967,-1096.59,0.00038356,2]
[420327823,1775971867985,-1096.59,0.00038356,2]
[420327824,1775971867999,-1096.59,0.00038356,2]
[420327825,1775971868014,-1096.59,0.00038356,2]
[420327826,1775971868034,-1096.59,0.00038356,2]
[420327827,1775971868050,-1096.59,0.00038356,2]
[420327828,1775971868062,-1096.59,0.00038356,2]
[420327829,1775971868084,-1096.59,0.00038356,2]
[420327830,1775971868103,-1096.59,0.00038356,2]
[420327831,1775971868125,-1096.59,0.00038356,2]
[420327832,1775971868140,-1096.59,0.00038356,2]
[420327833,1775971868160,-1096.59,0.00038356,2]
[420327834,1775971868170,-1096.8,0.00038356,2]
[420327835,1775971868195,-500.0,0.00038356,2]
[420327836,1775971868209,-500.0,0.00038356,2]
[420327837,1775971868242,-500.0,0.00038356,2]
[420327838,1775971868256,-500.0,0.00038356,2]
[420327839,1775971868283,-500.0,0.00038356,2]
[420327840,1775971868304,-500.0,0.00038356,2]
[420327841,1775971868339,-500.0,0.00038356,2]
[420327842,1775971868353,-178.29584972,0.00038356,2]
[420327843,1775971868381,-152.0,0.00038356,2]
[420327844,1775971868391,-172.0,0.00038356,2]
[420327845,1775971868417,-1000.0,0.00038356,120]
[420327846,1775971868432,-168.0,0.00038382,120]
[420327847,1775971868446,-5166.95,0.000384,30]
[420327848,1775971868461,-3015.28,0.000384,30]
[420327849,1775971868471,-6548.75,0.000384,30]
[420327850,1775971868481,-564.747028,0.000385,2]
[420327851,1775971868497,-153.87,0.00038532,30]
[420327852,1775971868507,-500.0,0.00038555,120]
[420327853,1775971868516,-509.0,0.00038567,14]
[420327854,1775971868527,-200.0,0.000386,10]
[420327855,1775971868545,-570.93758553,0.0003863,8]
[420327856,1775971868555,-500.0,0.0003863,8]
[420327857,1775971868567,-271.4323204,0.0003863,8]
[420327858,1775971868579,-509.81795847,0.0003863,8]
[420327859,1775971868605,-500.0,0.0003863,8]
[420327860,1775971868629,-500.0,0.0003863,8]
[420327861,1775971868664,-500.0,0.0003863,8]
[420327862,1775971868683,-500.0,0.0003863,8]
[420327863,1775971868721,-500.0,0.0003863,8]
[420327864,1775971868747,-500.0,0.0003863,8]
[420327865,1775971868763,-500.0,0.0003863,8]
[420327866,1775971868795,-500.0,0.0003863,8]
[420327867,1775971868810,-500.0,0.0003863,8]
[420327868,1775971868854,-500.0,0.0003863,8]
[420327869,1775971868873,-1626.02,0.0003863,8]
[420327870,1775971868887,-1442.42,0.0003863,8]
[420327871,1775971868899,-500.0,0.0003863,8]
[420327872,1775971868918,-2122.61,0.0003863,8]
[420327873,1775971868929,-500.0,0.0003863,8]
[420327874,1775971868939,-500.0,0.0003863,8]
[420327875,1775971868961,-500.0,0.0003863,8]
[420327876,1775971868975,-500.0,0.0003863,8]
[420327877,1775971868985,-500.0,0.0003863,8]
[420327878,1775971869011,-500.0,0.0003863,8]
[420327879,1775971869021,-847.7,0.0003863,8]
[420327880,1775971869030,-500.0,0.0003863,8]
[420327881,1775971869063,-500.0,0.0003863,8]
[420327882,1775971869073,-413.09662541,0.0003863,8]
[420327883,1775971869099,-500.0,0.0003863,8]
[420327884,1775971869112,-500.0,0.0003863,8]
[420327885,1775971869131,-500.0,0.0003863,8]
[420327886,1775971869148,-1688.37,0.0003863,8]
[420327887,1775971869158,-651.55,0.0003863,8]
[420327888,1775971869173,-591.25952257,0.0003863,8]
[420327889,1775971869192,-813.07,0.0003863,8]
[420327890,1775971869202,-500.0,0.0003863,8]
[420327891,1775971869213,-500.0,0.0003863,8]
[420327892,1775971869227,-711.78,0.0003863,8]
[420327893,1775971869241,-500.0,0.0003863,8]
[420327894,1775971869251,-500.0,0.0003863,8]
[420327895,1775971869261,-500.0,0.0003863,8]
[420327896,1775971869278,-274.37402298,0.0003863,8]
[420327897,1775971869291,-500.0,0.0003863,8]
[420327898,1775971869301,-552.86,0.0003863,8]
[420327899,1775971869318,-560.42,0.0003863,8]
[420327900,1775971869334,-500.0,0.0003863,8]
[420327901,1775971869344,-1100.29,0.0003863,8]
[420327902,1775971869360,-500.0,0.0003863,8]
[420327903,1775971869373,-500.0,0.0003863,8]
[420327904,1775971869385,-500.0,0.0003863,8]
[420327905,1775971869395,-500.0,0.0003863,8]
[420327906,1775971869416,-500.0,0.0003863,8]
[420327907,1775971869426,-1444.55,0.0003863,8]
[420327908,1775971869436,-624.84,0.0003863,8]
[420327909,1775971869454,-1463.92,0.0003863,8]
[420327910,1775971869467,-500.0,0.0003863,8]
[420327911,1775971869478,-1146.76,0.0003863,8]
[420327912,1775971869489,-219.32480346,0.0003863,8]
[420327913,1775971869506,-500.0,0.0003863,8]
[420327914,1775971869519,-500.0,0.0003863,8]
[420327915,1775971869529,-500.0,0.0003863,8]
[420327916,1775971869550,-675.5,0.0003863,8]
[420327917,1775971869563,-500.0,0.0003863,8]
[420327918,1775971869573,-500.0,0.0003863,8]
[420327919,1775971869603,-887.48,0.0003863,8]
[420327920,1775971869613,-500.0,0.0003863,8]
[420327921,1775971869630,-500.0,0.0003863,8]
[420327922,1775971869652,-500.0,0.0003863,8]
[420327923,1775971869661,-500.0,0.0003863,8]
[420327924,1775971869687,-500.0,0.0003863,8]
[420327925,1775971870003,-391.40147357,0.0003863,8]
[420327926,1775971870046,-500.0,0.0003863,8]
[420327927,1775971870065,-500.0,0.0003863,8]
[420327928,1775971870096,-262.15506399,0.0003863,8]
[420327929,1775971870111,-500.0,0.0003863,8]
[420327930,1775971870129,-1086.28,0.0003863,8]
[420327931,1775971870144,-500.0,0.0003863,8]
[420327932,1775971870157,-500.0,0.0003863,8]
[420327933,1775971870168,-500.0,0.0003863,8]
[420327934,1775971870177,-2038.18,0.0003863,8]
[420327935,1775971870192,-516.79,0.0003863,8]
[420327936,1775971870202,-301.88236807,0.0003863,8]
[420327937,1775971870212,-500.0,0.0003863,8]
[420327938,1775971870221,-928.97,0.0003863,8]
[420327939,1775971870240,-500.0,0.0003863,8]
[420327940,1775971870250,-500.0,0.0003863,8]
[420327941,1775971870264,-500.0,0.0003863,8]
[420327942,1775971870273,-500.0,0.0003863,8]
[420327943,1775971870287,-500.0,0.0003863,8]
[420327944,1775971870296,-500.0,0.0003863,8]
[420327945,1775971870314,-500.0,0.0003863,8]
[420327946,1775971870329,-379.25994612,0.0003863,8]
[420327947,1775971870339,-500.0,0.0003863,8]
[420327948,1775971870358,-500.0,0.0003863,8]
[420327949,1775971870372,-178.51137789,0.0003863,8]
[420327950,1775971870382,-500.0,0.0003863,8]
[420327951,1775971870402,-500.0,0.0003863,8]
[420327952,1775971870413,-234.7994467,0.0003863,8]
[420327953,1775971870423,-500.0,0.0003863,8]
[420327954,1775971870441,-500.0,0.0003863,8]
[420327955,1775971870459,-500.0,0.0003863,8]
[420327956,1775971870469,-500.0,0.0003863,8]
[420327957,1775971870491,-500.0,0.0003863,8]
[420327958,1775971870503,-500.0,0.0003863,8]
[420327959,1775971870513,-592.59,0.0003863,8]
[420327960,1775971870536,-502.42,0.0003863,8]
[420327961,1775971870551,-1810.69,0.0003863,8]
[420327962,1775971870561,-500.0,0.0003863,8]
[420327963,1775971870588,-527.58,0.0003863,8]
[420327964,1775971870598,-2182.35,0.0003863,8]
[420327965,1775971870607,-500.0,0.0003863,8]
[420327966,1775971870624,-219680.0,0.0003868,120]
[420327967,1775971870644,-500.0,0.000387,120]
[420327968,1775971870653,-500.0,0.000387,120]
[420327969,1775971870672,-500.0,0.000387,120]
[420327970,1775971870689,-500.0,0.000387,120]
[420327971,1775971870699,-500.0,0.000387,120]
[420327972,1775971870726,-500.0,0.000387,120]
[420327973,1775971870735,-500.0,0.000387,120]
[420327974,1775971870747,-500.0,0.000387,120]
[420327975,1775971870771,-1949.6526,0.000387,2]
[420327976,1775971870783,-300.0,0.000387,10]
[420327977,1775971870793,-160.72,0.00038727,30]
[420327978,1775971870820,-185.0,0.00038809,30]
[420327979,1775971870831,-1053.0,0.00038809,30]
[420327980,1775971870846,-150.0,0.00038831,120]
[420327981,1775971870859,-1100.0,0.000389,14]
[420327982,1775971870868,-500.0,0.00038904,8]
[420327983,1775971870879,-500.0,0.00038904,8]
[420327984,1775971870892,-175.74606985,0.00038904,8]
[420327985,1775971870909,-500.0,0.00038904,8]
[420327986,1775971870919,-585.73376048,0.00038904,8]
[420327987,1775971870936,-646.37369467,0.00038904,8]
[420327988,1775971870947,-500.0,0.00038904,8]
[420327989,1775971870965,-190.91534843,0.00038904,8]
[420327990,1775971870983,-500.0,0.00038904,8]
[420327991,1775971871000,-512.7655616,0.00038904,8]
[420327992,1775971871013,-500.0,0.00038904,8]
[420327993,1775971871038,-1626.02,0.00038904,8]
[420327994,1775971871059,-1442.42,0.00038904,8]
[420327995,1775971871072,-500.0,0.00038904,8]
[420327996,1775971871099,-2122.61,0.00038904,8]
[420327997,1775971871112,-500.0,0.00038904,8]
[420327998,1775971871133,-500.0,0.00038904,8]
[420327999,1775971871147,-500.0,0.00038904,8]
[420328000,1775971871166,-500.0,0.00038904,8]
[420328001,1775971871183,-203.99,0.00038904,8]
[420328002,1775971871194,-500.0,0.00038904,8]
[420328003,1775971871214,-847.7,0.00038904,8]
[420328004,1775971871234,-500.0,0.00038904,8]
[420328005,1775971871246,-500.0,0.00038904,8]
[420328006,1775971871268,-500.0,0.00038904,8]
[420328007,1775971871283,-500.0,0.00038904,8]
[420328008,1775971871293,-500.0,0.00038904,8]
[420328009,1775971871306,-1688.37,0.00038904,8]
[420328010,1775971871321,-651.55,0.00038904,8]
[420328011,1775971871337,-813.07,0.00038904,8]
[420328012,1775971871346,-500.0,0.00038904,8]
[420328013,1775971871356,-500.0,0.00038904,8]
[420328014,1775971871378,-711.78,0.00038904,8]
[420328015,1775971871387,-500.0,0.00038904,8]
[420328016,1775971871397,-500.0,0.00038904,8]
[420328017,1775971871424,-500.0,0.00038904,8]
[420328018,1775971871434,-500.0,0.00038904,8]
[420328019,1775971871449,-552.86,0.00038904,8]
[420328020,1775971871467,-560.42,0.00038904,8]
[420328021,1775971871477,-384.02484284,0.00038904,8]
[420328022,1775971871492,-1100.29,0.00038904,8]
[420328023,1775971871504,-500.0,0.00038904,8]
[420328024,1775971871513,-500.0,0.00038904,8]
[420328025,1775971871523,-500.0,0.00038904,8]
[420328026,1775971871542,-500.0,0.00038904,8]
[420328027,1775971871551,-177.13260047,0.00038904,8]
[420328028,1775971871561,-1444.55,0.00038904,8]
[420328029,1775971871572,-624.84,0.00038904,8]
[420328030,1775971871586,-1463.92,0.00038904,8]
[420328031,1775971871595,-540.37260354,0.00038904,8]
[420328032,1775971871605,-1146.76,0.00038904,8]
[420328033,1775971871619,-500.0,0.00038904,8]
[420328034,1775971871632,-500.0,0.00038904,8]
[420328035,1775971871642,-500.0,0.00038904,8]
[420328036,1775971871652,-675.5,0.00038904,8]
[420328037,1775971871664,-187.36660113,0.00038904,8]
[420328038,1775971871676,-500.0,0.00038904,8]
[420328039,1775971871685,-887.48,0.00038904,8]
[420328040,1775971871695,-500.0,0.00038904,8]
[420328041,1775971871705,-500.0,0.00038904,8]
[420328042,1775971871715,-604.42,0.00038904,8]
[420328043,1775971871725,-171.47694342,0.00038904,8]
[420328044,1775971871737,-500.0,0.00038904,8]
[420328045,1775971871746,-500.0,0.00038904,8]
[420328046,1775971871755,-500.0,0.00038904,8]
[420328047,1775971871764,-500.0,0.00038904,8]
[420328048,1775971871778,-1086.28,0.00038904,8]
[420328049,1775971871789,-500.0,0.00038904,8]
[420328050,1775971871799,-500.0,0.00038904,8]
[420328051,1775971871812,-500.0,0.00038904,8]
[420328052,1775971871821,-2038.18,0.00038904,8]
[420328053,1775971871838,-516.79,0.00038904,8]
[420328054,1775971871847,-500.0,0.00038904,8]
[420328055,1775971871868,-928.97,0.00038904,8]
[420328056,1775971871881,-500.0,0.00038904,8]
[420328057,1775971871891,-637.41066661,0.00038904,8]
[420328058,1775971871919,-500.0,0.00038904,8]
[420328059,1775971871937,-500.0,0.00038904,8]
[420328060,1775971871962,-500.0,0.00038904,8]
[420328061,1775971872000,-500.0,0.00038904,8]
[420328062,1775971872030,-434.73464095,0.00038904,8]
[420328063,1775971872082,-500.0,0.00038904,8]
[420328064,1775971872154,-500.0,0.00038904,8]
[420328065,1775971872202,-500.0,0.00038904,8]
[420328066,1775971872223,-500.0,0.00038904,8]
[420328067,1775971872239,-500.0,0.00038904,8]
[420328068,1775971872254,-500.0,0.00038904,8]
[420328069,1775971872270,-500.0,0.00038904,8]
[420328070,1775971872283,-500.0,0.00038904,8]
[420328071,1775971872300,-500.0,0.00038904,8]
[420328072,1775971872312,-500.0,0.00038904,8]
[420328073,1775971872322,-592.59,0.00038904,8]
[420328074,1775971872331,-502.42,0.00038904,8]
[420328075,1775971872342,-1810.69,0.00038904,8]
[420328076,1775971872354,-500.0,0.00038904,8]
[420328077,1775971872364,-527.58,0.00038904,8]
[420328078,1775971872373,-2182.35,0.00038904,8]
[420328079,1775971872386,-500.0,0.00038904,8]
[420328080,1775971872397,-1000.0,0.00039,30]
[420328081,1775971872407,-1639.17548298,0.00039,120]
[420328082,1775971872416,-3807.39877466,0.00039011,2]
[420328083,1775971872428,-1491.6264975,0.00039122,2]
[420328084,1775971872441,-500.0,0.00039178,8]
[420328085,1775971872451,-500.0,0.00039178,8]
[420328086,1775971872461,-500.0,0.00039178,8]
[420328087,1775971872473,-500.0,0.00039178,8]
[420328088,1775971872484,-1626.02,0.00039178,8]
[420328089,1775971872493,-1442.42,0.00039178,8]
[420328090,1775971872505,-203.72812435,0.00039178,8]
[420328091,1775971872514,-2122.61,0.00039178,8]
[420328092,1775971872526,-500.0,0.00039178,8]
[420328093,1775971872536,-500.0,0.00039178,8]
[420328094,1775971872551,-500.0,0.00039178,8]
[420328095,1775971872562,-500.0,0.00039178,8]
[420328096,1775971872575,-500.0,0.00039178,8]
[420328097,1775971872591,-847.7,0.00039178,8]
[420328098,1775971872603,-500.0,0.00039178,8]
[420328099,1775971872616,-500.0,0.00039178,8]
[420328100,1775971872629,-500.0,0.00039178,8]
[420328101,1775971872647,-500.0,0.00039178,8]
[420328102,1775971872660,-500.0,0.00039178,8]
[420328103,1775971872672,-1688.37,0.00039178,8]
[420328104,1775971872691,-651.55,0.00039178,8]
[420328105,1775971872704,-813.07,0.00039178,8]
[420328106,1775971872723,-500.0,0.00039178,8]
[420328107,1775971872745,-500.0,0.00039178,8]
[420328108,1775971872759,-711.78,0.00039178,8]
[420328109,1775971872779,-500.0,0.00039178,8]
[420328110,1775971872793,-500.0,0.00039178,8]
[420328111,1775971872816,-500.0,0.00039178,8]
[420328112,1775971872827,-500.0,0.00039178,8]
[420328113,1775971872837,-552.86,0.00039178,8]
[420328114,1775971872855,-560.42,0.00039178,8]
[420328115,1775971872877,-1100.29,0.00039178,8]
[420328116,1775971872889,-500.0,0.00039178,8]
[420328117,1775971872915,-500.0,0.00039178,8]
[420328118,1775971872925,-505.62943908,0.00039178,8]
[420328119,1775971872939,-500.0,0.00039178,8]
[420328120,1775971872963,-1444.55,0.00039178,8]
[420328121,1775971872973,-624.84,0.00039178,8]
[420328122,1775971872990,-1463.92,0.00039178,8]
[420328123,1775971873008,-1146.76,0.00039178,8]
[420328124,1775971873017,-500.0,0.00039178,8]
[420328125,1775971873033,-500.0,0.00039178,8]
[420328126,1775971873051,-500.0,0.00039178,8]
[420328127,1775971873060,-675.5,0.00039178,8]
[420328128,1775971873074,-500.0,0.00039178,8]
[420328129,1775971873083,-887.48,0.00039178,8]
[420328130,1775971873098,-500.0,0.00039178,8]
[420328131,1775971873107,-500.0,0.00039178,8]
[420328132,1775971873120,-500.0,0.00039178,8]
[420328133,1775971873132,-500.0,0.00039178,8]
[420328134,1775971873141,-500.0,0.00039178,8]
[420328135,1775971873151,-500.0,0.00039178,8]
[420328136,1775971873163,-1086.28,0.00039178,8]
[420328137,1775971873174,-500.0,0.00039178,8]
[420328138,1775971873183,-281.8464715,0.00039178,8]
[420328139,1775971873193,-529.67902666,0.00039178,8]
[420328140,1775971873205,-2038.18,0.00039178,8]
[420328141,1775971873217,-516.79,0.00039178,8]
[420328142,1775971873227,-500.0,0.00039178,8]
[420328143,1775971873237,-928.97,0.00039178,8]
[420328144,1775971873251,-500.0,0.00039178,8]
[420328145,1775971873262,-500.0,0.00039178,8]
[420328146,1775971873274,-500.0,0.00039178,8]
[420328147,1775971873286,-500.0,0.00039178,8]
[420328148,1775971873301,-500.0,0.00039178,8]
[420328149,1775971873311,-500.0,0.00039178,8]
[420328150,1775971873327,-500.0,0.00039178,8]
[420328151,1775971873344,-500.0,0.00039178,8]
[420328152,1775971873360,-500.0,0.00039178,8]
[420328153,1775971873371,-207.67908638,0.00039178,8]
[420328154,1775971873393,-500.0,0.00039178,8]
[420328155,1775971873407,-500.0,0.00039178,8]
[420328156,1775971873426,-318.63084718,0.00039178,8]
[420328157,1775971873446,-198.95846886,0.00039178,8]
[420328158,1775971873459,-500.0,0.00039178,8]
[420328159,1775971873488,-592.59,0.00039178,8]
[420328160,1775971873498,-502.42,0.00039178,8]
[420328161,1775971873526,-1810.69,0.00039178,8]
[420328162,1775971873539,-500.0,0.00039178,8]
[420328163,1775971873563,-527.58,0.00039178,8]
[420328164,1775971873575,-2182.35,0.00039178,8]
[420328165,1775971873587,-500.0,0.00039178,8]
[420328166,1775971873611,-188.0,0.00039222,120]
[420328167,1775971873623,-20634.0,0.0003939,120]
[420328168,1775971873640,-25415.06196164,0.0003939,120]
[420328169,1775971873654,-5166.95,0.000394,30]
[420328170,1775971873670,-3015.28,0.000394,30]
[420328171,1775971873682,-443.12984243,0.00039442,2]
[420328172,1775971873694,-500.0,0.00039452,8]
[420328173,1775971873707,-500.0,0.00039452,8]
[420328174,1775971873719,-500.0,0.00039452,8]
[420328175,1775971873732,-163.98290624,0.00039452,8]
[420328176,1775971873744,-1626.02,0.00039452,8]
[420328177,1775971873754,-1442.42,0.00039452,8]
[420328178,1775971873766,-2122.61,0.00039452,8]
[420328179,1775971873779,-500.0,0.00039452,8]
[420328180,1775971873791,-500.0,0.00039452,8]
[420328181,1775971873803,-500.0,0.00039452,8]
[420328182,1775971873815,-500.0,0.00039452,8]
[420328183,1775971873824,-500.0,0.00039452,8]
[420328184,1775971873837,-847.7,0.00039452,8]
[420328185,1775971873847,-500.0,0.00039452,8]
[420328186,1775971873856,-193.17932053,0.00039452,8]
[420328187,1775971873865,-500.0,0.00039452,8]
[420328188,1775971873878,-500.0,0.00039452,8]
[420328189,1775971873887,-500.0,0.00039452,8]
[420328190,1775971873896,-1688.37,0.00039452,8]
[420328191,1775971873905,-651.55,0.00039452,8]
[420328192,1775971873915,-813.07,0.00039452,8]
[420328193,1775971873926,-500.0,0.00039452,8]
[420328194,1775971873937,-500.0,0.00039452,8]
[420328195,1775971873946,-711.78,0.00039452,8]
[420328196,1775971873956,-500.0,0.00039452,8]
[420328197,1775971873970,-631.96778504,0.00039452,8]
[420328198,1775971873983,-229.99940613,0.00039452,8]
[420328199,1775971873992,-500.0,0.00039452,8]
[420328200,1775971874004,-552.86,0.00039452,8]
[420328201,1775971874017,-560.42,0.00039452,8]
[420328202,1775971874027,-1100.29,0.00039452,8]
[420328203,1775971874036,-634.85688357,0.00039452,8]
[420328204,1775971874050,-500.0,0.00039452,8]
[420328205,1775971874066,-500.0,0.00039452,8]
[420328206,1775971874076,-1444.55,0.00039452,8]
[420328207,1775971874092,-624.84,0.00039452,8]
[420328208,1775971874110,-1463.92,0.00039452,8]
[420328209,1775971874123,-1146.76,0.00039452,8]
[420328210,1775971874155,-500.0,0.00039452,8]
[420328211,1775971874174,-500.0,0.00039452,8]
[420328212,1775971874201,-500.0,0.00039452,8]
[420328213,1775971874212,-675.5,0.00039452,8]
[420328214,1775971874230,-500.0,0.00039452,8]
[420328215,1775971874244,-887.48,0.00039452,8]
[420328216,1775971874253,-500.0,0.00039452,8]
[420328217,1775971874263,-500.0,0.00039452,8]
[420328218,1775971874278,-500.0,0.00039452,8]
[420328219,1775971874287,-500.0,0.00039452,8]
[420328220,1775971874297,-300.39197188,0.00039452,8]
[420328221,1775971874307,-642.53239287,0.00039452,8]
[420328222,1775971874323,-1086.28,0.00039452,8]
[420328223,1775971874332,-384.20646416,0.00039452,8]
[420328224,1775971874341,-2038.18,0.00039452,8]
[420328225,1775971874351,-516.79,0.00039452,8]
[420328226,1775971874370,-151.63577302,0.00039452,8]
[420328227,1775971874379,-928.97,0.00039452,8]
[420328228,1775971874389,-500.0,0.00039452,8]
[420328229,1775971874399,-500.0,0.00039452,8]
[420328230,1775971874415,-500.0,0.00039452,8]
[420328231,1775971874424,-500.0,0.00039452,8]
[420328232,1775971874434,-500.0,0.00039452,8]
[420328233,1775971874447,-500.0,0.00039452,8]
[420328234,1775971874459,-500.0,0.00039452,8]